[Event "Lindores Abbey Rapid Challenge"]
[Site "Online"]
[Date "2020.05.20"]
[Round "7"]
[White "So, Wesley"]
[Black "Firouzja, Alireza"]
[Result "1/2-1/2"]
[ECO "D85"]
[WhiteElo "2741"]
[BlackElo "2703"]
[Annotator "ChessBase"]
[PlyCount "74"]
[EventDate "2020.05.19"]
[EventType "tourn"]
[SourceTitle "playchess.com"]
[Source "ChessBase"]
[SourceQuality "1"]
[TimeControl "900+10"]

1. d4 Nf6 2. c4 {[%emt 0:00:14]} g6 {[%emt 0:00:12]} 3. Nc3 {[%emt 0:00:05]} d5 {[%emt 0:00:24]} 4. cxd5 {[%emt 0:00:11]} Nxd5 {[%emt 0:00:01]} 5. e4 {[%emt 0:00:01]} Nxc3 {[%emt 0:00:01]} 6. bxc3 {[%emt 0:00:01]} Bg7 {[%emt 0:00:00]} 7. Be3 {[%emt 0:00:01]} c5 {[%emt 0:00:05]} 8. Rc1 {[%emt 0:00:10]} O-O {[%emt 0:00:06]} 9. Nf3 {[%emt 0:00:06]} Qa5 {[%emt 0:00:19]} 10. Qd2 {[%emt 0:00:03]} Rd8 {[%emt 0:00:10]} 11. d5 {[%emt 0:00:17]} e6 {[%emt 0:00:03]} 12. Bg5 {[%emt 0:00:07]} Rd6 {[%emt 0:00:01]} 13. Bf4 {[%emt 0:00:32]} Rd8 {[%emt 0:00:03]} 14. c4 {[%emt 0:00:16]} Qxd2+ {[%emt 0:00:12]} 15. Kxd2 {[%emt 0:01:17]} Nc6 {[%emt 0:01:29]} 16. Bd3 {[%emt 0:00:22]} Nb4 {[%emt 0:01:08]} 17. Bb1 {[%emt 0:00:13]} f5 {[%emt 0:02:06]} 18. a3 {[%emt 0:04:04]} fxe4 {[%emt 0:01:03]} 19. Ng5 {[%emt 0:00:10]} exd5 {[%emt 0:04:50]} 20. axb4 {[%emt 0:00:13]} h6 {[%emt 0:00:04]} 21. Bc7 {[%emt 0:03:21]} Rf8 {[%emt 0:01:38]} 22. cxd5 {[%emt 0:00:22]} Rxf2+ {[%emt 0:02:13]} 23. Ke1 {[%emt 0:00:14]} Rb2 {[%emt 0:00:48]} 24. Nxe4 {[%emt 0:01:01]} Bf5 {[%emt 0:00:16]} 25. bxc5 {[%emt 0:00:26]} Re8 {[%emt 0:01:24]} 26. d6 {[%emt 0:00:12]} Bc3+ {[%emt 0:00:29]} 27. Rxc3 {[%emt 0:01:58]} Rxb1+ {[%emt 0:00:04]} 28. Kd2 {[%emt 0:00:01]} Rxh1 {[%emt 0:00:02]} 29. Ng3 {[%emt 0:02:33]} Ree1 {[%emt 0:00:25]} 30. Nxh1 {[%emt 0:00:42]} Rxh1 {[%emt 0:00:00]} 31. Rb3 {[%emt 0:00:02]} Rxh2 {[%emt 0:00:20]} 32. Rxb7 {[%emt 0:00:01]} Rxg2+ {[%emt 0:00:02]} 33. Ke3 {[%emt 0:00:15]} Rc2 {[%emt 0:00:04]} 34. Kd4 {[%emt 0:00:02]} Rd2+ {[%emt 0:00:18]} 35. Ke5 {[%emt 0:00:08]} Re2+ {[%emt 0:00:05]} 36. Kd4 {[%emt 0:00:18]} Rd2+ {[%emt 0:00:02]} 37. Kc4 {[%emt 0:00:42]} Rc2+ {[%emt 0:00:05]} 1/2-1/2